fUST/lending_fUST_20240928
["ID","MTS","AMOUNT","RATE_DAILY","PERIOD"]
[339358628,1727471457023,-153.0,0.00019379,2]
[339358629,1727471457032,-153.0,0.00019379,2]
[339358630,1727471457041,-153.0,0.00019379,2]
[339358631,1727471457051,-153.0,0.00019379,2]
[339358632,1727471457060,-153.0,0.00019379,2]
[339358633,1727471457069,-153.0,0.00019379,2]
[339358634,1727471457079,-153.0,0.00019379,2]
[339358635,1727471457088,-153.0,0.00019379,2]
[339358636,1727471457099,-153.0,0.00019379,2]
[339358637,1727471457108,-153.0,0.00019379,2]
[339358638,1727471457118,-153.0,0.00019379,2]
[339358639,1727471457128,-153.0,0.00019379,2]
[339358640,1727471457137,-153.0,0.00019379,2]
[339358641,1727471457147,-153.0,0.00019379,2]
[339358642,1727471457156,-153.0,0.00019379,2]
[339358643,1727471457165,-153.0,0.00019379,2]
[339358644,1727471457175,-153.0,0.00019379,2]
[339358645,1727471457185,-3569.13005417,0.00019385,2]
[339358646,1727471457194,-151.0,0.00019389,2]
[339358647,1727471457204,-288.818036,0.00019389,2]
[339358648,1727471457214,-151.0,0.00019389,2]
[339358649,1727471457224,-151.0,0.00019389,2]
[339358650,1727471457325,-262.124344,0.00019389,2]
[339358651,1727471457334,-151.0,0.00019389,2]
[339358652,1727471457343,-151.0,0.00019389,2]
[339358653,1727471457353,-151.0,0.00019389,2]
[339358654,1727471457362,-151.0,0.00019389,2]
[339358655,1727471457371,-151.0,0.00019389,2]
[339358656,1727471457379,-151.0,0.00019389,2]
[339358657,1727471457389,-151.0,0.00019389,2]
[339358658,1727471457398,-198.453868,0.00019389,2]
[339358659,1727471457407,-198.453868,0.00019389,2]
[339358660,1727471457416,-215.87298,0.00019389,2]
[339358661,1727471457425,-215.87298,0.00019389,2]
[339358662,1727471457434,-151.0,0.00019389,2]
[339358663,1727471457442,-277.424647,0.00019389,2]
[339358664,1727471457451,-151.0,0.00019389,2]
[339358665,1727471457460,-151.0,0.00019389,2]
[339358666,1727471457470,-508.894113,0.00019389,2]
[339358667,1727471457478,-508.894113,0.00019389,2]
[339358668,1727471457491,-209.934445,0.00019389,2]
[339358669,1727471457500,-209.934445,0.00019389,2]
[339358670,1727471457509,-209.146017,0.00019389,2]
[339358671,1727471457517,-209.146017,0.00019389,2]
[339358672,1727471457526,-364.32699,0.00019389,2]
[339358673,1727471457536,-364.32699,0.00019389,2]
[339358674,1727471457544,-151.0,0.00019389,2]
[339358675,1727471457553,-534.368586,0.00019389,2]
[339358676,1727471457563,-534.368586,0.00019389,2]
[339358677,1727471457572,-151.0,0.00019389,2]
[339358678,1727471457581,-151.0,0.00019389,2]
[339358679,1727471457590,-438.846381,0.00019389,2]
[339358680,1727471457598,-438.846381,0.00019389,2]
[339358681,1727471457608,-598.72589,0.00019389,2]
[339358682,1727471457617,-598.72589,0.00019389,2]
[339358683,1727471457627,-1144.878145,0.00019389,2]
[339358684,1727471457636,-1144.878145,0.00019389,2]
[339358685,1727471457645,-151.0,0.00019399,2]
[339358686,1727471457655,-151.0,0.00019399,2]
[339358687,1727471457665,-434.01295,0.00019399,2]
[339358688,1727471457675,-434.01295,0.00019399,2]
[339358689,1727471457684,-151.0,0.00019399,2]
[339358690,1727471457693,-279.40138517,0.00019399,2]
[339358691,1727471457703,-151.0,0.00019399,2]
[339358692,1727471457712,-325.004773,0.00019399,2]
[339358693,1727471457722,-325.004773,0.00019399,2]
[339358694,1727471457731,-411.471365,0.00019399,2]
[339358695,1727471457741,-411.471365,0.00019399,2]
[339358696,1727471457750,-151.0,0.00019399,2]
[339358697,1727471457760,-151.0,0.00019399,2]
[339358698,1727471457769,-643.119853,0.00019399,2]
[339358699,1727471457779,-643.119853,0.00019399,2]
[339358700,1727471457789,-151.0,0.00019399,2]
[339358701,1727471457798,-151.0,0.00019399,2]
[339358702,1727471457808,-215.87298,0.00019399,2]
[339358703,1727471457818,-215.87298,0.00019399,2]
[339358704,1727471457827,-205.380671,0.00019399,2]
[339358705,1727471457837,-205.380671,0.00019399,2]
[339358706,1727471457846,-151.290419,0.00019399,2]
[339358707,1727471457856,-151.290419,0.00019399,2]
[339358708,1727471457866,-356.710457,0.00019399,2]
[339358709,1727471457876,-356.710457,0.00019399,2]
[339358710,1727471457885,-1587.546384,0.00019399,2]
[339358711,1727471457895,-1587.546384,0.00019399,2]
[339358712,1727471457904,-657.856149,0.00019399,2]
[339358713,1727471457913,-657.856149,0.00019399,2]
[339358714,1727471457923,-151.0,0.00019399,2]
[339358715,1727471457936,-151.0,0.00019399,2]
[339358716,1727471457946,-750.514983,0.00019399,2]
[339358717,1727471457956,-750.514983,0.00019399,2]
[339358718,1727471457966,-152.033188,0.00019399,2]
[339358719,1727471457975,-152.033188,0.00019399,2]
[339358720,1727471457985,-1247.413607,0.00019399,2]
[339358721,1727471457994,-1247.413607,0.00019399,2]
[339358722,1727471458005,-150.112234,0.000194,2]
[339358723,1727471458016,-150.0,0.000194,2]
[339358724,1727471458026,-244.6405,0.00019409,2]
[339358725,1727471458035,-198.453868,0.00019442,2]
[339358726,1727471458044,-198.453868,0.00019442,2]
[339358727,1727471458054,-151.0,0.00019442,2]
[339358728,1727471458065,-151.0,0.00019442,2]
[339358729,1727471458075,-508.894113,0.00019442,2]
[339358730,1727471458085,-508.894113,0.00019442,2]
[339358731,1727471458094,-160.0,0.00019451,2]
[339358732,1727471458105,-325.004773,0.00019452,2]
[339358733,1727471458115,-325.004773,0.00019452,2]
[339358734,1727471458125,-151.0,0.00019452,2]
[339358735,1727471458135,-643.119853,0.00019452,2]
[339358736,1727471458144,-643.119853,0.00019452,2]
[339358737,1727471458154,-151.0,0.00019452,2]
[339358738,1727471458164,-165.760801,0.00019452,2]
[339358739,1727471458174,-209.934445,0.00019452,2]
[339358740,1727471458183,-209.934439,0.00019452,2]
[339358741,1727471458192,-209.146017,0.00019452,2]
[339358742,1727471458202,-209.146018,0.00019452,2]
[339358743,1727471458211,-205.380671,0.00019452,2]
[339358744,1727471458221,-205.380672,0.00019452,2]
[339358745,1727471458230,-151.290419,0.00019452,2]
[339358746,1727471458239,-151.290416,0.00019452,2]
[339358747,1727471458249,-364.32699,0.00019452,2]
[339358748,1727471458258,-364.32699,0.00019452,2]
[339358749,1727471458267,-356.710457,0.00019452,2]
[339358750,1727471458276,-356.710458,0.00019452,2]
[339358751,1727471458285,-151.0,0.00019452,2]
[339358752,1727471458294,-1587.546384,0.00019452,2]
[339358753,1727471458304,-456.14291149,0.00019452,2]
[339358754,1727471458314,-1587.546379,0.00019452,2]
[339358755,1727471458324,-151.0,0.00019452,2]
[339358756,1727471458333,-534.368586,0.00019452,2]
[339358757,1727471458343,-534.368593,0.00019452,2]
[339358758,1727471458353,-500.0,0.00019452,2]
[339358759,1727471458363,-151.0,0.00019452,2]
[339358760,1727471458372,-500.0,0.00019452,2]
[339358761,1727471458382,-615.87,0.00019452,2]
[339358762,1727471458392,-500.0,0.00019452,2]
[339358763,1727471458402,-181.95433877,0.00019452,2]
[339358764,1727471458411,-500.0,0.00019452,2]
[339358765,1727471458421,-500.0,0.00019452,2]
[339358766,1727471458430,-1602.483352,0.00019452,2]
[339358767,1727471458440,-1602.483352,0.00019452,2]
[339358768,1727471458450,-405.7,0.00019452,2]
[339358769,1727471458460,-500.0,0.00019452,2]
[339358770,1727471458470,-500.0,0.00019452,2]
[339358771,1727471458480,-500.0,0.00019452,2]
[339358772,1727471458491,-500.0,0.00019452,2]
[339358773,1727471458500,-500.0,0.00019452,2]
[339358774,1727471458510,-151.0,0.00019452,2]
[339358775,1727471458519,-151.0,0.00019452,2]
[339358776,1727471458529,-500.0,0.00019452,2]
[339358777,1727471458538,-571.88,0.00019452,2]
[339358778,1727471458547,-500.0,0.00019452,2]
[339358779,1727471458557,-200.0,0.00019452,2]
[339358780,1727471458567,-1243.203715,0.00019452,2]
[339358781,1727471458576,-500.0,0.00019452,2]
[339358782,1727471458586,-1243.203715,0.00019452,2]
[339358783,1727471458595,-579.52,0.00019452,2]
[339358784,1727471458605,-438.846381,0.00019452,2]
[339358785,1727471458614,-438.846381,0.00019452,2]
[339358786,1727471458623,-646.25,0.00019452,2]
[339358787,1727471458632,-500.0,0.00019452,2]
[339358788,1727471458641,-816.38,0.00019452,2]
[339358789,1727471458650,-500.0,0.00019452,2]
[339358790,1727471458659,-1247.413607,0.00019452,2]
[339358791,1727471458669,-1247.413607,0.00019452,2]
[339358792,1727471458678,-500.0,0.00019452,2]
[339358793,1727471458687,-500.0,0.00019452,2]
[339358794,1727471458696,-1200.052562,0.00019452,2]
[339358795,1727471458706,-183.24566,0.00019452,2]
[339358796,1727471458715,-1200.052562,0.00019452,2]
[339358797,1727471458724,-183.24566,0.00019452,2]
[339358798,1727471458733,-190.936119,0.00019452,2]
[339358799,1727471458743,-500.0,0.00019452,2]
[339358800,1727471458752,-190.936119,0.00019452,2]
[339358801,1727471458760,-598.72589,0.00019452,2]
[339358802,1727471458770,-598.72589,0.00019452,2]
[339358803,1727471458779,-500.0,0.00019452,2]
[339358804,1727471458788,-1144.878145,0.00019452,2]
[339358805,1727471458798,-1144.878145,0.00019452,2]
[339358806,1727471458807,-500.0,0.00019452,2]
[339358807,1727471458816,-3312.470803,0.00019452,2]
[339358808,1727471458826,-3312.470803,0.00019452,2]
[339358809,1727471458835,-1558.73,0.00019452,2]
[339358810,1727471458845,-500.0,0.00019452,2]
[339358811,1727471458854,-500.0,0.00019452,2]
[339358812,1727471458863,-709.61,0.00019452,2]
[339358813,1727471458872,-534.17375437,0.00019452,2]
[339358814,1727471458881,-6692.1,0.00019452,2]
[339358815,1727471458890,-500.0,0.00019452,2]
[339358816,1727471458899,-1049.02,0.00019452,2]
[339358817,1727471458909,-342.64540366,0.00019472,2]
[339358818,1727471458918,-12081.52708458,0.00019472,2]
[339358819,1727471458930,-657.856149,0.00019472,2]
[339358820,1727471458939,-657.856149,0.00019472,2]
[339358821,1727471458948,-151.0,0.00019472,2]
[339358822,1727471458957,-750.514983,0.00019472,2]
[339358823,1727471458966,-750.514983,0.00019472,2]
[339358824,1727471458976,-152.033188,0.00019472,2]
[339358825,1727471458985,-152.033188,0.00019472,2]
[339358826,1727471458994,-501.57713305,0.00019473,2]
[339358827,1727471459005,-500.0,0.00019473,2]
[339358828,1727471459014,-500.0,0.00019473,2]
[339358829,1727471459023,-500.0,0.00019473,2]
[339358830,1727471459033,-500.0,0.00019473,2]
[339358831,1727471459042,-500.0,0.00019473,2]
[339358832,1727471459051,-151.0,0.00019473,2]
[339358833,1727471459060,-151.0,0.00019473,2]
[339358834,1727471459069,-151.0,0.00019473,2]
[339358835,1727471459077,-151.0,0.00019473,2]
[339358836,1727471459086,-151.0,0.00019473,2]
[339358837,1727471459095,-151.0,0.00019473,2]
[339358838,1727471459104,-151.0,0.00019473,2]
[339358839,1727471459113,-151.0,0.00019473,2]
[339358840,1727471459122,-151.0,0.00019473,2]
[339358841,1727471459131,-215.87298,0.00019473,2]
[339358842,1727471459140,-215.87298,0.00019473,2]
[339358843,1727471459149,-151.0,0.00019483,2]
[339358844,1727471459158,-411.471365,0.00019483,2]
[339358845,1727471459167,-411.471365,0.00019483,2]
[339358846,1727471459177,-151.0,0.00019483,2]
[339358847,1727471459186,-270.846688,0.00019483,2]
[339358848,1727471459195,-198.453868,0.00019483,2]
[339358849,1727471459204,-198.453868,0.00019483,2]
[339358850,1727471459212,-151.0,0.00019483,2]
[339358851,1727471459221,-151.0,0.00019483,2]
[339358852,1727471459231,-151.0,0.00019483,2]
[339358853,1727471459240,-508.894113,0.00019483,2]
[339358854,1727471459249,-508.894113,0.00019483,2]
[339358855,1727471459257,-151.0,0.00019483,2]
[339358856,1727471459266,-151.0,0.00019483,2]
[339358857,1727471459275,-1602.483352,0.00019483,2]
[339358858,1727471459284,-1602.483352,0.00019483,2]
[339358859,1727471459293,-151.0,0.00019483,2]
[339358860,1727471459302,-1243.203715,0.00019483,2]
[339358861,1727471459311,-1243.203715,0.00019483,2]
[339358862,1727471459321,-183.24566,0.00019483,2]
[339358863,1727471459330,-183.24566,0.00019483,2]
[339358864,1727471459339,-190.936119,0.00019483,2]
[339358865,1727471459348,-190.936119,0.00019483,2]
[339358866,1727471459357,-3312.470803,0.00019483,2]
[339358867,1727471459366,-3312.470803,0.00019483,2]
[339358868,1727471459375,-155.81721,0.00019488,2]
[339358869,1727471459384,-151.0,0.00019488,2]
[339358870,1727471459393,-151.0,0.00019488,2]
[339358871,1727471459402,-325.004773,0.00019488,2]
[339358872,1727471459411,-325.004773,0.00019488,2]
[339358873,1727471459421,-643.119853,0.00019488,2]
[339358874,1727471459430,-643.119853,0.00019488,2]
[339358875,1727471459439,-364.32699,0.00019488,2]
[339358876,1727471459448,-364.326998,0.00019488,2]
[339358877,1727471459457,-657.856149,0.00019488,2]
[339358878,1727471459466,-657.856149,0.00019488,2]
[339358879,1727471459475,-151.0,0.00019488,2]
[339358880,1727471459484,-750.514983,0.00019488,2]
[339358881,1727471459493,-750.514983,0.00019488,2]
[339358882,1727471459502,-152.033188,0.00019488,2]
[339358883,1727471459510,-152.033188,0.00019488,2]
[339358884,1727471459519,-151.0,0.00019488,2]
[339358885,1727471459528,-438.846381,0.00019488,2]
[339358886,1727471459538,-438.846381,0.00019488,2]
[339358887,1727471459547,-1247.413607,0.00019488,2]
[339358888,1727471459649,-1247.413607,0.00019488,2]
[339358889,1727471459659,-1200.052562,0.00019488,2]
[339358890,1727471459668,-1200.052562,0.00019488,2]
[339358891,1727471459677,-151.0,0.00019489,2]
[339358892,1727471459687,-151.0,0.00019489,2]
[339358893,1727471459696,-151.0,0.00019489,2]
[339358894,1727471459704,-215.87298,0.00019489,2]
[339358895,1727471459713,-215.87298,0.00019489,2]
[339358896,1727471459723,-151.0,0.00019499,2]
[339358897,1727471459732,-151.0,0.00019499,2]
[339358898,1727471459742,-434.01295,0.00019499,2]
[339358899,1727471459751,-434.01295,0.00019499,2]
[339358900,1727471459761,-150.112233,0.000195,2]
[339358901,1727471459770,-150.112233,0.000195,2]
[339358902,1727471459779,-160.0,0.00019506,2]
[339358903,1727471459788,-160.0,0.00019507,2]
[339358904,1727471459798,-151.0,0.00019507,2]
[339358905,1727471459807,-151.0,0.00019507,2]
[339358906,1727471459815,-151.0,0.00019507,2]
[339358907,1727471459824,-151.0,0.00019507,2]
[339358908,1727471459833,-151.0,0.00019507,2]
[339358909,1727471459843,-151.0,0.00019507,2]
[339358910,1727471459852,-151.0,0.00019507,2]
[339358911,1727471459862,-151.0,0.00019507,2]
[339358912,1727471459871,-151.0,0.00019507,2]
[339358913,1727471459881,-325.004773,0.00019507,2]
[339358914,1727471459890,-325.004773,0.00019507,2]
[339358915,1727471459899,-411.471365,0.00019507,2]
[339358916,1727471459908,-411.471365,0.00019507,2]
[339358917,1727471459918,-151.0,0.00019507,2]
[339358918,1727471459931,-643.119853,0.00019507,2]
[339358919,1727471459940,-643.119853,0.00019507,2]
[339358920,1727471459949,-151.0,0.00019507,2]
[339358921,1727471459959,-198.453868,0.00019507,2]
[339358922,1727471459969,-198.453868,0.00019507,2]
[339358923,1727471459979,-151.0,0.00019507,2]
[339358924,1727471459988,-215.87298,0.00019507,2]
[339358925,1727471459997,-215.87298,0.00019507,2]
[339358926,1727471460007,-151.0,0.00019507,2]
[339358927,1727471460017,-266.665448,0.00019507,2]
[339358928,1727471460027,-508.894113,0.00019507,2]
[339358929,1727471460036,-508.894113,0.00019507,2]
[339358930,1727471460046,-151.0,0.00019507,2]
[339358931,1727471460056,-151.0,0.00019507,2]
[339358932,1727471460065,-598.72589,0.00019507,2]
[339358933,1727471460075,-598.725888,0.00019507,2]
[339358934,1727471460085,-1144.878145,0.00019507,2]
[339358935,1727471460094,-1144.878141,0.00019507,2]
[339358936,1727471460104,-500.0,0.00019517,2]
[339358937,1727471460114,-500.0,0.00019517,2]
[339358938,1727471460124,-500.0,0.00019544,2]
[339358939,1727471460134,-582.0,0.00019544,2]
[339358940,1727471460144,-151.0,0.00019547,2]
[339358941,1727471460153,-151.0,0.00019547,2]
[339358942,1727471460163,-500.0,0.00019556,2]
[339358943,1727471460172,-190.89663485,0.00019556,2]
[339358944,1727471460182,-151.0,0.00019561,2]
[339358945,1727471460191,-151.0,0.00019561,2]
[339358946,1727471460200,-151.0,0.00019561,2]
[339358947,1727471460209,-151.0,0.00019561,2]
[339358948,1727471460219,-151.0,0.00019561,2]
[339358949,1727471460229,-151.0,0.00019561,2]
[339358950,1727471460238,-151.0,0.00019561,2]
[339358951,1727471460248,-151.0,0.00019561,2]
[339358952,1727471460259,-151.0,0.00019561,2]
[339358953,1727471460268,-151.0,0.00019561,2]
[339358954,1727471460278,-434.01295,0.00019561,2]
[339358955,1727471460288,-434.01295,0.00019561,2]
[339358956,1727471460298,-151.0,0.00019561,2]
[339358957,1727471460307,-198.453868,0.00019561,2]
[339358958,1727471460317,-198.453868,0.00019561,2]
[339358959,1727471460327,-151.0,0.00019561,2]
[339358960,1727471460337,-508.894113,0.00019561,2]
[339358961,1727471460348,-508.894113,0.00019561,2]
[339358962,1727471460357,-657.856149,0.00019561,2]
[339358963,1727471460367,-657.856149,0.00019561,2]
[339358964,1727471460376,-151.0,0.00019561,2]
[339358965,1727471460385,-750.514983,0.00019561,2]
[339358966,1727471460395,-750.514983,0.00019561,2]
[339358967,1727471460404,-152.033188,0.00019561,2]
[339358968,1727471460414,-152.033188,0.00019561,2]
[339358969,1727471460424,-157.766151,0.00019562,2]
[339358970,1727471460433,-151.0,0.00019562,2]
[339358971,1727471460443,-1602.483352,0.00019562,2]
[339358972,1727471460452,-1602.483342,0.00019562,2]
[339358973,1727471460462,-151.0,0.00019562,2]
[339358974,1727471460471,-1243.203715,0.00019562,2]
[339358975,1727471460481,-1243.203716,0.00019562,2]
[339358976,1727471460492,-183.24566,0.00019562,2]
[339358977,1727471460501,-183.245668,0.00019562,2]
[339358978,1727471460510,-190.936119,0.00019562,2]
[339358979,1727471460520,-190.936114,0.00019562,2]
[339358980,1727471460530,-3312.470803,0.00019562,2]
[339358981,1727471460540,-3312.470801,0.00019562,2]
[339358982,1727471460550,-159.0,0.0001957,2]
[339358983,1727471460560,-500.0,0.00019571,3]
[339358984,1727471460569,-211.85919944,0.00019571,3]
[339358985,1727471460578,-500.0,0.00019572,2]
[339358986,1727471460588,-258.49695524,0.00019572,2]
[339358987,1727471460597,-500.0,0.00019599,2]
[339358988,1727471460607,-151.0,0.000196,2]
[339358989,1727471460617,-151.0,0.000196,2]
[339358990,1727471460626,-151.0,0.000196,2]
[339358991,1727471460636,-325.004773,0.000196,2]
[339358992,1727471460646,-325.004773,0.000196,2]
[339358993,1727471460656,-150.112233,0.000196,2]
[339358994,1727471460665,-411.471365,0.000196,2]
[339358995,1727471460675,-411.471365,0.000196,2]
[339358996,1727471460684,-643.119853,0.000196,2]
[339358997,1727471460694,-643.119853,0.000196,2]
[339358998,1727471460703,-151.0,0.000196,2]
[339358999,1727471460713,-215.87298,0.000196,2]
[339359000,1727471460722,-215.87298,0.000196,2]
[339359001,1727471460731,-309.20853301,0.00019601,2]
[339359002,1727471460741,-51830.09190217,0.00019602,2]
[339359003,1727471460750,-151.0,0.00019602,2]
[339359004,1727471460759,-151.0,0.00019602,2]
[339359005,1727471460769,-151.0,0.00019602,2]
[339359006,1727471460778,-438.846381,0.00019602,2]
[339359007,1727471460788,-438.846373,0.00019602,2]
[339359008,1727471460797,-1247.413607,0.00019602,2]
[339359009,1727471460807,-1247.41361,0.00019602,2]
[339359010,1727471460817,-1200.052562,0.00019602,2]
[339359011,1727471460826,-1200.052554,0.00019602,2]
[339359012,1727471460836,-228.68429665,0.00019621,2]
[339359013,1727471460846,-500.0,0.00019627,2]
[339359014,1727471460856,-539.85078024,0.00019654,2]
[339359015,1727471460867,-151.0,0.00019679,2]
[339359016,1727471460876,-151.0,0.00019679,2]
[339359017,1727471460886,-151.0,0.00019679,2]
[339359018,1727471460896,-151.0,0.00019679,2]
[339359019,1727471460905,-151.0,0.00019679,2]
[339359020,1727471460915,-151.0,0.00019679,2]
[339359021,1727471460926,-151.0,0.00019679,2]
[339359022,1727471460937,-202.893025,0.00019679,2]
[339359023,1727471460948,-151.0,0.0001968,2]
[339359024,1727471460958,-151.0,0.0001968,2]
[339359025,1727471460968,-151.0,0.0001968,2]
[339359026,1727471460978,-151.0,0.0001968,2]
[339359027,1727471460988,-151.0,0.0001968,2]
[339359028,1727471460999,-151.0,0.0001968,2]
[339359029,1727471461009,-151.0,0.0001968,2]
[339359030,1727471461019,-151.0,0.0001968,2]
[339359031,1727471461028,-151.0,0.0001968,2]
[339359032,1727471461038,-151.0,0.0001968,2]
[339359033,1727471461048,-151.0,0.0001968,2]
[339359034,1727471461058,-151.0,0.0001968,2]
[339359035,1727471461067,-434.01295,0.0001968,2]
[339359036,1727471461077,-434.01295,0.0001968,2]
[339359037,1727471461086,-151.0,0.0001968,2]
[339359038,1727471461095,-151.0,0.0001968,2]
[339359039,1727471461105,-325.004773,0.0001968,2]
[339359040,1727471461115,-325.004773,0.0001968,2]
[339359041,1727471461125,-411.471365,0.0001968,2]
[339359042,1727471461135,-411.471365,0.0001968,2]
[339359043,1727471461145,-643.119853,0.0001968,2]
[339359044,1727471461159,-643.119853,0.0001968,2]
[339359045,1727471461169,-151.0,0.0001968,2]
[339359046,1727471461179,-198.453868,0.0001968,2]
[339359047,1727471461189,-198.453868,0.0001968,2]
[339359048,1727471461199,-151.0,0.0001968,2]
[339359049,1727471461209,-215.87298,0.0001968,2]
[339359050,1727471461219,-215.872978,0.0001968,2]
[339359051,1727471461229,-151.0,0.0001968,2]
[339359052,1727471461239,-508.894113,0.0001968,2]
[339359053,1727471461250,-508.894113,0.0001968,2]
[339359054,1727471461260,-657.856149,0.0001968,2]
[339359055,1727471461270,-657.856149,0.0001968,2]
[339359056,1727471461279,-151.0,0.0001968,2]
[339359057,1727471461289,-750.514983,0.0001968,2]
[339359058,1727471461302,-750.514983,0.0001968,2]
[339359059,1727471461311,-152.033188,0.0001968,2]
[339359060,1727471461321,-152.033188,0.0001968,2]
[339359061,1727471461330,-151.0,0.0001969,2]
[339359062,1727471461339,-151.0,0.0001969,2]
[339359063,1727471461350,-151.0,0.0001969,2]
[339359064,1727471461361,-151.0,0.0001969,2]
[339359065,1727471461371,-150.112233,0.000197,2]
[339359066,1727471461380,-150.112233,0.000197,2]
[339359067,1727471461390,-608.0,0.000197,2]
[339359068,1727471461399,-500.0,0.00019726,2]
[339359069,1727471461409,-500.0,0.00019726,2]
[339359070,1727471461419,-615.87,0.00019726,2]
[339359071,1727471461428,-500.0,0.00019726,2]
[339359072,1727471461439,-500.0,0.00019726,2]
[339359073,1727471461448,-500.0,0.00019726,2]
[339359074,1727471461459,-500.0,0.00019726,2]
[339359075,1727471461469,-500.0,0.00019726,2]
[339359076,1727471461480,-500.0,0.00019726,2]
[339359077,1727471461490,-500.0,0.00019726,2]
[339359078,1727471461500,-500.0,0.00019726,2]
[339359079,1727471461509,-571.88,0.00019726,2]
[339359080,1727471461520,-500.0,0.00019726,2]
[339359081,1727471461530,-200.0,0.00019726,2]
[339359083,1727471461540,-579.52,0.00019726,2]
[339359084,1727471461550,-646.25,0.00019726,2]
[339359085,1727471461559,-255.04796526,0.00019726,2]
[339359086,1727471461569,-816.38,0.00019726,2]
[339359087,1727471461579,-500.0,0.00019726,2]
[339359088,1727471461588,-187.06272016,0.00019726,2]
[339359089,1727471461598,-500.0,0.00019726,2]
[339359090,1727471461608,-1558.73,0.00019726,2]
[339359091,1727471461618,-500.0,0.00019726,2]
[339359092,1727471461627,-500.0,0.00019726,2]
[339359093,1727471461637,-709.61,0.00019726,2]
[339359094,1727471461646,-6692.1,0.00019726,2]
[339359095,1727471461656,-500.0,0.00019726,2]
[339359096,1727471461665,-151.0,0.00019727,2]
[339359097,1727471461675,-151.0,0.00019757,2]
[339359098,1727471461685,-151.0,0.00019757,2]
[339359099,1727471461696,-151.0,0.00019757,2]
[339359100,1727471461705,-151.0,0.00019757,2]
[339359101,1727471461715,-151.0,0.00019757,2]
[339359102,1727471461724,-151.0,0.00019757,2]
[339359103,1727471461733,-151.0,0.00019757,2]
[339359104,1727471461743,-151.0,0.00019757,2]
[339359105,1727471461845,-151.0,0.00019757,2]
[339359106,1727471461857,-151.0,0.00019757,2]
[339359107,1727471461867,-434.01295,0.00019757,2]
[339359108,1727471461877,-434.01295,0.00019757,2]
[339359109,1727471461887,-151.0,0.00019757,2]
[339359110,1727471461897,-325.004773,0.00019757,2]
[339359111,1727471461906,-325.004768,0.00019757,2]
[339359112,1727471461916,-411.471365,0.00019757,2]
[339359113,1727471461929,-411.471365,0.00019757,2]
[339359114,1727471461939,-643.119853,0.00019757,2]
[339359115,1727471461950,-643.119855,0.00019757,2]
[339359116,1727471461960,-198.453868,0.00019757,2]
[339359117,1727471461970,-198.453874,0.00019757,2]
[339359118,1727471461980,-151.0,0.00019757,2]
[339359119,1727471461990,-151.0,0.00019757,2]
[339359120,1727471462001,-508.894113,0.00019757,2]
[339359121,1727471462011,-508.894122,0.00019757,2]
[339359122,1727471462021,-151.0,0.00019757,2]
[339359123,1727471462030,-657.856149,0.00019757,2]
[339359124,1727471462040,-657.856149,0.00019757,2]
[339359125,1727471462049,-151.0,0.00019757,2]
[339359126,1727471462059,-151.0,0.00019757,2]
[339359127,1727471462068,-750.514983,0.00019757,2]
[339359128,1727471462078,-750.514983,0.00019757,2]